[Event "Late-Titled-Tuesday-Blitz-September-05-2023"]
[Site "Chess.com"]
[Date "2023.09.05"]
[Round "2"]
[White "frederiksvane"]
[Black "Alex_Banzea"]
[Result "1-0"]
[WhiteElo "2930"]
[BlackElo "2569"]
[TimeControl "180+1"]
[EndTime "14:17:40 PDT"]
[Termination "frederiksvane won by resignation"]

1. c4 {[%clk 0:03:00.9]} 1... e6 {[%clk 0:02:59.6]} 2. Nc3 {[%clk 0:03:00.7]}
2... d5 {[%clk 0:03:00.5]} 3. d4 {[%clk 0:03:01.2]} 3... Nf6 {[%clk 0:03:01]} 4.
cxd5 {[%clk 0:03:01.7]} 4... exd5 {[%clk 0:03:01.9]} 5. Bg5 {[%clk 0:03:02.1]}
5... c6 {[%clk 0:03:02]} 6. e3 {[%clk 0:03:02.5]} 6... h6 {[%clk 0:03:02.1]} 7.
Bh4 {[%clk 0:03:01.8]} 7... Be7 {[%clk 0:03:01.7]} 8. Bd3 {[%clk 0:03:02]} 8...
O-O {[%clk 0:03:02.4]} 9. h3 {[%clk 0:03:01.2]} 9... Re8 {[%clk 0:02:59.3]} 10.
Nf3 {[%clk 0:03:00.9]} 10... Ne4 {[%clk 0:02:58.7]} 11. Bxe7 {[%clk 0:02:58.9]}
11... Qxe7 {[%clk 0:02:59.6]} 12. O-O {[%clk 0:02:54]} 12... Bf5 {[%clk
0:02:58.6]} 13. Bxe4 {[%clk 0:02:49.6]} 13... dxe4 {[%clk 0:02:55.5]} 14. Nd2
{[%clk 0:02:46.9]} 14... Nd7 {[%clk 0:02:55.2]} 15. Rb1 {[%clk 0:02:43.1]} 15...
Nf6 {[%clk 0:02:48.3]} 16. b4 {[%clk 0:02:41.8]} 16... a6 {[%clk 0:02:45]} 17.
a4 {[%clk 0:02:41.6]} 17... Rad8 {[%clk 0:02:19]} 18. Qe2 {[%clk 0:02:41.6]}
18... h5 {[%clk 0:02:14.3]} 19. Rfc1 {[%clk 0:02:39.3]} 19... g6 {[%clk
0:02:12.2]} 20. b5 {[%clk 0:02:35.7]} 20... axb5 {[%clk 0:02:08.5]} 21. axb5
{[%clk 0:02:36.6]} 21... c5 {[%clk 0:02:08.2]} 22. dxc5 {[%clk 0:02:36.7]} 22...
Qxc5 {[%clk 0:02:08.5]} 23. Ncxe4 {[%clk 0:02:33.2]} 23... Nxe4 {[%clk
0:01:43.9]} 24. Rxc5 {[%clk 0:02:17.4]} 24... Rxd2 {[%clk 0:01:44.3]} 25. Qe1
{[%clk 0:02:17.8]} 25... Nxc5 {[%clk 0:01:44.4]} 26. Qxd2 {[%clk 0:02:18.1]}
26... Bxb1 {[%clk 0:01:44.7]} 27. Qc1 {[%clk 0:02:18.6]} 27... Be4 {[%clk
0:00:58.2]} 28. Qxc5 {[%clk 0:02:17.3]} 28... Bf5 {[%clk 0:00:39.1]} 29. Qd5
{[%clk 0:02:02.9]} 29... Be4 {[%clk 0:00:34.3]} 30. Qd7 {[%clk 0:01:56.3]} 30...
Kf8 {[%clk 0:00:34.5]} 31. f3 {[%clk 0:01:54.1]} 31... Bf5 {[%clk 0:00:22.8]}
32. Qxb7 {[%clk 0:01:51.1]} 32... Rxe3 {[%clk 0:00:23.4]} 33. b6 {[%clk
0:01:51.8]} 33... Re8 {[%clk 0:00:19.5]} 34. Qc7 {[%clk 0:01:47.2]} 34... Bc8
{[%clk 0:00:17.4]} 35. Kf2 {[%clk 0:01:47.3]} 35... Ba6 {[%clk 0:00:12.3]} 36.
Qa7 {[%clk 0:01:38]} 36... Bc8 {[%clk 0:00:12]} 37. h4 {[%clk 0:01:34.6]} 37...
Kg8 {[%clk 0:00:12.4]} 38. Kg3 {[%clk 0:01:33.5]} 38... Kf8 {[%clk 0:00:12.8]}
39. Kf4 {[%clk 0:01:33.6]} 39... Kg8 {[%clk 0:00:13]} 40. Kg5 {[%clk 0:01:31.5]}
40... Kf8 {[%clk 0:00:12.7]} 41. Kh6 {[%clk 0:01:27.7]} 41... Re7 {[%clk
0:00:10]} 42. Qb8 {[%clk 0:01:26.9]} 42... Re8 {[%clk 0:00:09.9]} 43. Qd6+
{[%clk 0:01:15.6]} 43... Kg8 {[%clk 0:00:09.3]} 44. Qc7 {[%clk 0:01:06.1]} 44...
Kf8 {[%clk 0:00:08.9]} 45. f4 {[%clk 0:01:02.6]} 45... Kg8 {[%clk 0:00:06.5]}
46. f5 {[%clk 0:00:56.9]} 46... gxf5 {[%clk 0:00:07.4]} 47. Kxh5 {[%clk
0:00:52]} 47... Kf8 {[%clk 0:00:06.3]} 48. Kg5 {[%clk 0:00:52]} 48... Ba6 {[%clk
0:00:05.3]} 49. b7 {[%clk 0:00:51.9]} 49... Bxb7 {[%clk 0:00:05.1]} 50. Qxb7
{[%clk 0:00:52.8]} 1-0

[Event "Late-Titled-Tuesday-Blitz-September-05-2023"]
[Site "Chess.com"]
[Date "2023.09.05"]
[Round "2"]
[White "arminmusovic"]
[Black "JoakimVonAnd"]
[Result "1-0"]
[WhiteElo "2528"]
[BlackElo "2726"]
[TimeControl "180+1"]
[EndTime "14:17:41 PDT"]
[Termination "arminmusovic won by resignation"]

1. a3 {[%clk 0:03:00.9]} 1... Nf6 {[%clk 0:02:46.3]} 2. c4 {[%clk 0:03:00.6]}
2... e6 {[%clk 0:02:44.5]} 3. d4 {[%clk 0:02:59.8]} 3... d5 {[%clk 0:02:43.8]}
4. Nc3 {[%clk 0:03:00.4]} 4... dxc4 {[%clk 0:02:41]} 5. e3 {[%clk 0:03:00.1]}
5... a6 {[%clk 0:02:40.3]} 6. Bxc4 {[%clk 0:03:00.1]} 6... b5 {[%clk 0:02:40.7]}
7. Be2 {[%clk 0:03:00.6]} 7... Bb7 {[%clk 0:02:41]} 8. Bf3 {[%clk 0:03:01.3]}
8... Qc8 {[%clk 0:02:34.1]} 9. e4 {[%clk 0:02:59.1]} 9... Nbd7 {[%clk
0:02:28.6]} 10. Bf4 {[%clk 0:02:51.5]} 10... c5 {[%clk 0:02:10.1]} 11. d5 {[%clk
0:02:49.1]} 11... e5 {[%clk 0:02:07.7]} 12. Be3 {[%clk 0:02:46.3]} 12... Bd6
{[%clk 0:02:07.6]} 13. Nge2 {[%clk 0:02:44.7]} 13... O-O {[%clk 0:02:07.7]} 14.
Ng3 {[%clk 0:02:44]} 14... Re8 {[%clk 0:02:00]} 15. h4 {[%clk 0:02:40.3]} 15...
Nb6 {[%clk 0:01:45.6]} 16. Nf5 {[%clk 0:02:39.3]} 16... Bf8 {[%clk 0:01:44.4]}
17. g4 {[%clk 0:02:39.6]} 17... Nc4 {[%clk 0:01:30.8]} 18. g5 {[%clk 0:02:30]}
18... Nd7 {[%clk 0:01:10.1]} 19. Bg4 {[%clk 0:02:03.3]} 19... b4 {[%clk
0:00:59.4]} 20. Na4 {[%clk 0:01:51.5]} 20... Nxe3 {[%clk 0:00:58.4]} 21. fxe3
{[%clk 0:01:51.4]} 21... Qd8 {[%clk 0:00:48]} 22. O-O {[%clk 0:01:47.4]} 22...
g6 {[%clk 0:00:42.7]} 23. Qf3 {[%clk 0:01:37.7]} 23... gxf5 {[%clk 0:00:36.9]}
24. Qxf5 {[%clk 0:01:38.6]} 24... Bc8 {[%clk 0:00:33.6]} 25. Qxf7+ {[%clk
0:01:35.1]} 25... Kh8 {[%clk 0:00:30.8]} 26. Qh5 {[%clk 0:01:08.5]} 26... Bg7
{[%clk 0:00:28.7]} 27. Bf5 {[%clk 0:00:58.9]} 27... Nf8 {[%clk 0:00:28.6]} 28.
Bxh7 {[%clk 0:00:59.2]} 28... Bg4 {[%clk 0:00:21.1]} 29. Qxg4 {[%clk 0:00:56]}
29... Nxh7 {[%clk 0:00:20.9]} 30. g6 {[%clk 0:00:51.7]} 30... Nf6 {[%clk
0:00:20.3]} 31. Rxf6 {[%clk 0:00:51.5]} 31... Qxf6 {[%clk 0:00:20.7]} 32. Qh5+
{[%clk 0:00:52.2]} 32... Kg8 {[%clk 0:00:21.2]} 33. Qh7+ {[%clk 0:00:53.1]}
33... Kf8 {[%clk 0:00:21.7]} 34. Rf1 {[%clk 0:00:54]} 34... Ke7 {[%clk
0:00:20.1]} 35. Rxf6 {[%clk 0:00:51.8]} 35... Kxf6 {[%clk 0:00:21]} 36. Qh5
{[%clk 0:00:46.5]} 36... bxa3 {[%clk 0:00:14.4]} 37. Qf5+ {[%clk 0:00:46.5]}
37... Ke7 {[%clk 0:00:14.9]} 38. Qe6+ {[%clk 0:00:39.5]} 38... Kd8 {[%clk
0:00:15.3]} 39. Qd6+ {[%clk 0:00:39.8]} 39... Kc8 {[%clk 0:00:15.5]} 40. Qc6+
{[%clk 0:00:40.4]} 40... Kd8 {[%clk 0:00:15.6]} 41. Qxa8+ {[%clk 0:00:39.8]}
41... Ke7 {[%clk 0:00:15.6]} 42. Qb7+ {[%clk 0:00:36.7]} 42... Kd6 {[%clk
0:00:15.4]} 43. Qc6+ {[%clk 0:00:36.7]} 43... Ke7 {[%clk 0:00:16]} 44. Qe6+
{[%clk 0:00:36.9]} 44... Kd8 {[%clk 0:00:16.5]} 45. Qd6+ {[%clk 0:00:36.8]}
45... Kc8 {[%clk 0:00:16.7]} 46. Nxc5 {[%clk 0:00:36.3]} 1-0

[Event "Late-Titled-Tuesday-Blitz-September-05-2023"]
[Site "Chess.com"]
[Date "2023.09.05"]
[Round "2"]
[White "Too_Stupid_To_Play"]
[Black "HajiyevKanan"]
[Result "0-1"]
[WhiteElo "2240"]
[BlackElo "2493"]
[TimeControl "180+1"]
[EndTime "14:17:41 PDT"]
[Termination "HajiyevKanan won by checkmate"]

1. d4 {[%clk 0:02:59]} 1... Nf6 {[%clk 0:03:00]} 2. Nc3 {[%clk 0:02:55.1]} 2...
a6 {[%clk 0:02:58.9]} 3. e4 {[%clk 0:02:53.6]} 3... b5 {[%clk 0:02:59.5]} 4. f3
{[%clk 0:02:53.9]} 4... b4 {[%clk 0:02:59.9]} 5. Nce2 {[%clk 0:02:52]} 5... Bb7
{[%clk 0:03:00]} 6. Bg5 {[%clk 0:02:51.7]} 6... h6 {[%clk 0:02:59.9]} 7. Bxf6
{[%clk 0:02:51.1]} 7... gxf6 {[%clk 0:02:59.4]} 8. Qd2 {[%clk 0:02:51.2]} 8...
e5 {[%clk 0:02:55.1]} 9. d5 {[%clk 0:02:43.2]} 9... Bc5 {[%clk 0:02:52.9]} 10.
Ng3 {[%clk 0:02:36.7]} 10... c6 {[%clk 0:02:47.3]} 11. Bc4 {[%clk 0:02:30.9]}
11... Qb6 {[%clk 0:02:42.6]} 12. Nh3 {[%clk 0:02:25.2]} 12... cxd5 {[%clk
0:02:34.2]} 13. Bxd5 {[%clk 0:02:24.9]} 13... Nc6 {[%clk 0:02:33.2]} 14. Nf5
{[%clk 0:02:16.5]} 14... O-O-O {[%clk 0:02:30.6]} 15. Bxf7 {[%clk 0:02:02.9]}
15... Nd4 {[%clk 0:02:30]} 16. Bd5 {[%clk 0:01:47.3]} 16... Bxd5 {[%clk
0:02:24.7]} 17. Nxd4 {[%clk 0:01:47.5]} 17... Bxd4 {[%clk 0:02:20.2]} 18. exd5
{[%clk 0:01:46.2]} 18... Bxb2 {[%clk 0:02:20.4]} 19. Ke2 {[%clk 0:01:37]} 19...
Qb5+ {[%clk 0:02:14.7]} 20. Qd3 {[%clk 0:01:31.7]} 20... Qxd3+ {[%clk
0:02:05.6]} 21. Kxd3 {[%clk 0:01:32.6]} 21... Bxa1 {[%clk 0:02:06.3]} 22. Rxa1
{[%clk 0:01:33.3]} 22... Rhg8 {[%clk 0:02:06.7]} 23. g4 {[%clk 0:01:30.5]} 23...
Kc7 {[%clk 0:02:01.6]} 24. Nf2 {[%clk 0:01:24.5]} 24... h5 {[%clk 0:01:49.2]}
25. gxh5 {[%clk 0:01:19.3]} 25... f5 {[%clk 0:01:41.2]} 26. Kc4 {[%clk
0:01:19.4]} 26... Kd6 {[%clk 0:01:35]} 27. Kxb4 {[%clk 0:01:04.7]} 27... Kxd5
{[%clk 0:01:31]} 28. Rd1+ {[%clk 0:00:59.6]} 28... Ke6 {[%clk 0:01:29.7]} 29.
Nd3 {[%clk 0:00:57.1]} 29... d6 {[%clk 0:01:25.7]} 30. Ka5 {[%clk 0:00:56.2]}
30... Rb8 {[%clk 0:01:21.4]} 31. a4 {[%clk 0:00:44.6]} 31... Rg2 {[%clk
0:01:15.9]} 32. Nb4 {[%clk 0:00:42.9]} 32... Rxh2 {[%clk 0:01:09.4]} 33. Nxa6
{[%clk 0:00:42.8]} 33... Ra8 {[%clk 0:01:06]} 34. Kb6 {[%clk 0:00:42.5]} 34...
Rc8 {[%clk 0:00:50.3]} 35. Nc7+ {[%clk 0:00:34.2]} 35... Kd7 {[%clk 0:00:50.1]}
36. Nb5 {[%clk 0:00:34.2]} 36... Rc6+ {[%clk 0:00:46.3]} 37. Kb7 {[%clk
0:00:34.1]} 37... Rxh5 {[%clk 0:00:35.9]} 38. a5 {[%clk 0:00:21.3]} 38... e4
{[%clk 0:00:33.4]} 39. a6 {[%clk 0:00:18.9]} 39... f4 {[%clk 0:00:27.3]} 40. Nd4
{[%clk 0:00:12.4]} 40... Rc7+ {[%clk 0:00:25.5]} 41. Kb8 {[%clk 0:00:11.7]}
41... Rh8# {[%clk 0:00:25]} 0-1

[Event "Late-Titled-Tuesday-Blitz-September-05-2023"]
[Site "Chess.com"]
[Date "2023.09.05"]
[Round "2"]
[White "YoreDea"]
[Black "Fandorine"]
[Result "0-1"]
[WhiteElo "2568"]
[BlackElo "2918"]
[TimeControl "180+1"]
[EndTime "14:17:42 PDT"]
[Termination "Fandorine won on time"]

1. d4 {[%clk 0:02:54.8]} 1... Nf6 {[%clk 0:02:58.5]} 2. g3 {[%clk 0:02:53.5]}
2... d5 {[%clk 0:02:56.7]} 3. Bg2 {[%clk 0:02:53.2]} 3... g6 {[%clk 0:02:55.4]}
4. Nf3 {[%clk 0:02:50.5]} 4... Bg7 {[%clk 0:02:56]} 5. a4 {[%clk 0:02:50.1]}
5... O-O {[%clk 0:02:53.8]} 6. O-O {[%clk 0:02:49.9]} 6... a5 {[%clk 0:02:46.9]}
7. c3 {[%clk 0:02:48.5]} 7... b6 {[%clk 0:02:45.4]} 8. Bf4 {[%clk 0:02:47.1]}
8... Bb7 {[%clk 0:02:45.5]} 9. Na3 {[%clk 0:02:46.3]} 9... Nbd7 {[%clk
0:02:42.9]} 10. Ne5 {[%clk 0:02:46.1]} 10... e6 {[%clk 0:02:42.2]} 11. Nb5
{[%clk 0:02:42.5]} 11... Ne8 {[%clk 0:02:34.2]} 12. Nxd7 {[%clk 0:02:37.9]}
12... Qxd7 {[%clk 0:02:34.1]} 13. c4 {[%clk 0:02:37.3]} 13... c6 {[%clk
0:02:26.3]} 14. Na3 {[%clk 0:02:35.9]} 14... Nd6 {[%clk 0:02:21.6]} 15. Bxd6
{[%clk 0:02:23.9]} 15... Qxd6 {[%clk 0:02:21.4]} 16. e3 {[%clk 0:02:24.8]} 16...
Rfd8 {[%clk 0:02:17.7]} 17. Qc2 {[%clk 0:02:18.9]} 17... Rac8 {[%clk 0:02:15.3]}
18. b3 {[%clk 0:02:14.6]} 18... h5 {[%clk 0:02:14.3]} 19. h4 {[%clk 0:02:08.9]}
19... c5 {[%clk 0:02:03]} 20. Nb5 {[%clk 0:02:08.2]} 20... Qe7 {[%clk
0:02:01.8]} 21. Rad1 {[%clk 0:02:01.9]} 21... Bc6 {[%clk 0:01:52.8]} 22. dxc5
{[%clk 0:01:56.8]} 22... Bxb5 {[%clk 0:01:46.1]} 23. axb5 {[%clk 0:01:52.6]}
23... Qxc5 {[%clk 0:01:45.2]} 24. Rc1 {[%clk 0:01:41.5]} 24... dxc4 {[%clk
0:01:13.6]} 25. bxc4 {[%clk 0:01:40.5]} 25... Qb4 {[%clk 0:01:08.5]} 26. Qe4
{[%clk 0:01:28.1]} 26... a4 {[%clk 0:01:04.2]} 27. Qb7 {[%clk 0:01:25]} 27...
Qc5 {[%clk 0:00:57.9]} 28. Qa6 {[%clk 0:01:15.8]} 28... a3 {[%clk 0:00:56.6]}
29. Qa4 {[%clk 0:01:09.3]} 29... Rd2 {[%clk 0:00:52.9]} 30. Bc6 {[%clk
0:01:04.9]} 30... a2 {[%clk 0:00:44.3]} 31. Rfd1 {[%clk 0:00:41]} 31... Rcd8
{[%clk 0:00:41.1]} 32. Re1 {[%clk 0:00:27.9]} 32... Rb2 {[%clk 0:00:31.6]} 33.
Red1 {[%clk 0:00:09.2]} 33... Rdd2 {[%clk 0:00:24.4]} 34. Rxd2 {[%clk
0:00:04.7]} 34... Rxd2 {[%clk 0:00:24.4]} 35. Kf1 {[%clk 0:00:03.8]} 35... Qf5
{[%clk 0:00:20.9]} 0-1

[Event "Late-Titled-Tuesday-Blitz-September-05-2023"]
[Site "Chess.com"]
[Date "2023.09.05"]
[Round "2"]
[White "kacprekt"]
[Black "Nikachu"]
[Result "1-0"]
[WhiteElo "2438"]
[BlackElo "2166"]
[TimeControl "180+1"]
[EndTime "14:17:42 PDT"]
[Termination "kacprekt won by resignation"]

1. e4 {[%clk 0:03:00.9]} 1... c5 {[%clk 0:02:59.1]} 2. Nf3 {[%clk 0:03:00.8]}
2... d6 {[%clk 0:02:59.2]} 3. d4 {[%clk 0:02:54.9]} 3... cxd4 {[%clk 0:03:00.1]}
4. Nxd4 {[%clk 0:02:54.8]} 4... Nf6 {[%clk 0:02:59.2]} 5. f3 {[%clk 0:02:55.1]}
5... e5 {[%clk 0:02:51.5]} 6. Nb3 {[%clk 0:02:55.1]} 6... Be6 {[%clk 0:02:47.2]}
7. c4 {[%clk 0:02:53.8]} 7... Qc7 {[%clk 0:02:44.4]} 8. Na3 {[%clk 0:02:35.6]}
8... a6 {[%clk 0:02:41.7]} 9. Be2 {[%clk 0:02:33.7]} 9... Be7 {[%clk 0:02:40.7]}
10. O-O {[%clk 0:02:33.8]} 10... O-O {[%clk 0:02:40.9]} 11. Be3 {[%clk 0:02:34]}
11... Nbd7 {[%clk 0:02:41.1]} 12. Rc1 {[%clk 0:02:32.2]} 12... Rac8 {[%clk
0:02:40.3]} 13. Qe1 {[%clk 0:02:29.2]} 13... Nc5 {[%clk 0:02:31]} 14. Nxc5
{[%clk 0:02:18.4]} 14... dxc5 {[%clk 0:02:30.5]} 15. Nb1 {[%clk 0:02:19.3]}
15... Rfd8 {[%clk 0:02:11.1]} 16. Nc3 {[%clk 0:02:14.7]} 16... Qb8 {[%clk
0:02:04.7]} 17. Nd5 {[%clk 0:02:12.5]} 17... Bxd5 {[%clk 0:01:58.1]} 18. cxd5
{[%clk 0:02:08.2]} 18... b5 {[%clk 0:01:57.9]} 19. Qa5 {[%clk 0:02:04]} 19...
Qb7 {[%clk 0:01:52.9]} 20. Rc2 {[%clk 0:02:00]} 20... c4 {[%clk 0:01:44.1]} 21.
Rfc1 {[%clk 0:01:53.6]} 21... Nd7 {[%clk 0:01:09.3]} 22. a4 {[%clk 0:01:44.8]}
22... Nc5 {[%clk 0:01:04.7]} 23. axb5 {[%clk 0:01:40.2]} 23... axb5 {[%clk
0:00:57]} 24. Qe1 {[%clk 0:01:30.4]} 24... Nb3 {[%clk 0:00:55.7]} 25. Rd1 {[%clk
0:01:26]} 25... Bc5 {[%clk 0:00:51]} 26. Qf2 {[%clk 0:01:25.4]} 26... Bxe3
{[%clk 0:00:50.5]} 27. Qxe3 {[%clk 0:01:26.3]} 27... Nd4 {[%clk 0:00:50.8]} 28.
Rxd4 {[%clk 0:01:25.1]} 28... exd4 {[%clk 0:00:50.4]} 29. Qxd4 {[%clk 0:01:26]}
29... Qc7 {[%clk 0:00:45]} 30. b3 {[%clk 0:01:20.8]} 30... Qc5 {[%clk
0:00:42.1]} 31. Qxc5 {[%clk 0:01:20.7]} 31... Rxc5 {[%clk 0:00:43]} 32. bxc4
{[%clk 0:01:21.3]} 32... Rdc8 {[%clk 0:00:42.9]} 33. Kf2 {[%clk 0:01:19.4]}
33... bxc4 {[%clk 0:00:43.1]} 34. Ke3 {[%clk 0:01:19.7]} 34... c3 {[%clk
0:00:42.2]} 35. Kd4 {[%clk 0:01:20]} 35... f6 {[%clk 0:00:42.6]} 36. f4 {[%clk
0:01:18]} 36... Kh8 {[%clk 0:00:35.2]} 37. e5 {[%clk 0:01:16.3]} 37... fxe5+
{[%clk 0:00:32.1]} 38. fxe5 {[%clk 0:01:17.2]} 38... Kg8 {[%clk 0:00:32.3]} 39.
d6 {[%clk 0:01:06]} 39... Ra5 {[%clk 0:00:26]} 40. Bc4+ {[%clk 0:01:03.5]} 40...
Kf8 {[%clk 0:00:25.2]} 41. Rxc3 {[%clk 0:00:57.4]} 41... Ke8 {[%clk 0:00:15.5]}
42. Bf7+ {[%clk 0:00:55.2]} 42... Kd8 {[%clk 0:00:14.2]} 43. Rxc8+ {[%clk
0:00:54.2]} 43... Kxc8 {[%clk 0:00:15.1]} 44. e6 {[%clk 0:00:54.4]} 44... Rf5
{[%clk 0:00:10.1]} 45. e7 {[%clk 0:00:39]} 1-0

[Event "Late-Titled-Tuesday-Blitz-September-05-2023"]
[Site "Chess.com"]
[Date "2023.09.05"]
[Round "2"]
[White "FabianoCaruana"]
[Black "JackRodgers"]
[Result "1-0"]
[WhiteElo "3065"]
[BlackElo "2602"]
[TimeControl "180+1"]
[EndTime "14:17:46 PDT"]
[Termination "FabianoCaruana won by resignation"]

1. c4 {[%clk 0:03:00.9]} 1... c5 {[%clk 0:02:59.2]} 2. g3 {[%clk 0:03:00.3]}
2... g6 {[%clk 0:02:59.5]} 3. Bg2 {[%clk 0:03:00.5]} 3... Bg7 {[%clk 0:03:00.2]}
4. Nc3 {[%clk 0:03:01]} 4... Nf6 {[%clk 0:03:00.3]} 5. Nf3 {[%clk 0:03:00.2]}
5... Nc6 {[%clk 0:02:59.6]} 6. d4 {[%clk 0:02:59.6]} 6... cxd4 {[%clk
0:02:59.1]} 7. Nxd4 {[%clk 0:03:00.5]} 7... O-O {[%clk 0:02:59.6]} 8. O-O {[%clk
0:03:00.4]} 8... d6 {[%clk 0:02:59.9]} 9. Nc2 {[%clk 0:03:00.4]} 9... Be6 {[%clk
0:02:59.4]} 10. Ne3 {[%clk 0:03:00]} 10... Qd7 {[%clk 0:02:58.8]} 11. b3 {[%clk
0:02:54.3]} 11... Bh3 {[%clk 0:02:58.4]} 12. Bb2 {[%clk 0:02:53.9]} 12... Bxg2
{[%clk 0:02:58.5]} 13. Kxg2 {[%clk 0:02:54.8]} 13... Rac8 {[%clk 0:02:59]} 14.
Rc1 {[%clk 0:02:55]} 14... a6 {[%clk 0:02:58.8]} 15. Qd2 {[%clk 0:02:54.9]}
15... Rfd8 {[%clk 0:02:58.6]} 16. Ncd5 {[%clk 0:02:52.1]} 16... Nxd5 {[%clk
0:02:58]} 17. Nxd5 {[%clk 0:02:51.9]} 17... Bxb2 {[%clk 0:02:46.9]} 18. Qxb2
{[%clk 0:02:52.8]} 18... Qf5 {[%clk 0:02:38.9]} 19. Rfd1 {[%clk 0:02:42.8]}
19... Re8 {[%clk 0:02:38.2]} 20. f3 {[%clk 0:02:40.1]} 20... Qe5 {[%clk
0:02:35]} 21. Qd2 {[%clk 0:02:39.7]} 21... e6 {[%clk 0:02:28.2]} 22. Nc3 {[%clk
0:02:30.1]} 22... Rcd8 {[%clk 0:02:25.3]} 23. h4 {[%clk 0:02:25.5]} 23... d5
{[%clk 0:02:23]} 24. cxd5 {[%clk 0:02:22.5]} 24... exd5 {[%clk 0:02:23.9]} 25.
Qg5 {[%clk 0:02:18]} 25... Qxg5 {[%clk 0:02:08.1]} 26. hxg5 {[%clk 0:02:18.9]}
26... Kg7 {[%clk 0:01:56.5]} 27. Rd2 {[%clk 0:02:12.4]} 27... d4 {[%clk
0:01:46.2]} 28. Ne4 {[%clk 0:02:12.4]} 28... h6 {[%clk 0:01:33.6]} 29. gxh6+
{[%clk 0:02:09.8]} 29... Kxh6 {[%clk 0:01:34.5]} 30. Nc5 {[%clk 0:02:05.5]}
30... Re7 {[%clk 0:01:12.4]} 31. Nxb7 {[%clk 0:02:04.7]} 31... Rxb7 {[%clk
0:01:11.2]} 32. Rxc6 {[%clk 0:02:04.1]} 32... a5 {[%clk 0:01:11.4]} 33. Rc4
{[%clk 0:02:02.1]} 33... Rbd7 {[%clk 0:01:10.9]} 34. Kf2 {[%clk 0:01:59.9]}
34... f5 {[%clk 0:01:04.7]} 35. Rc5 {[%clk 0:01:57.5]} 35... Rd5 {[%clk
0:01:03.5]} 36. Rxd5 {[%clk 0:01:57.3]} 36... Rxd5 {[%clk 0:01:04.4]} 37. f4
{[%clk 0:01:54]} 37... g5 {[%clk 0:01:02.3]} 38. Rc2 {[%clk 0:01:46.1]} 38... d3
{[%clk 0:00:58]} 39. Rd2 {[%clk 0:01:45.4]} 39... gxf4 {[%clk 0:00:54.9]} 40.
gxf4 {[%clk 0:01:40.9]} 40... Rd4 {[%clk 0:00:49.9]} 41. e3 {[%clk 0:01:41.2]}
41... Rd8 {[%clk 0:00:46.3]} 42. Kf3 {[%clk 0:01:41.8]} 42... Kg6 {[%clk
0:00:44.5]} 43. e4 {[%clk 0:01:39.4]} 43... a4 {[%clk 0:00:29.5]} 44. Ke3 {[%clk
0:01:29.4]} 44... axb3 {[%clk 0:00:22.2]} 45. axb3 {[%clk 0:01:29]} 45... fxe4
{[%clk 0:00:20]} 46. Kxe4 {[%clk 0:01:29.9]} 46... Re8+ {[%clk 0:00:16.8]} 47.
Kxd3 {[%clk 0:01:30.1]} 47... Kf5 {[%clk 0:00:17.5]} 48. Rf2 {[%clk 0:01:28.6]}
48... Rd8+ {[%clk 0:00:16.6]} 49. Kc3 {[%clk 0:01:28.8]} 49... Rc8+ {[%clk
0:00:17.3]} 50. Kb2 {[%clk 0:01:28.8]} 50... Rb8 {[%clk 0:00:17.9]} 51. Rf1
{[%clk 0:01:29]} 51... Rc8 {[%clk 0:00:16.2]} 52. Rc1 {[%clk 0:01:28.7]} 52...
Rb8 {[%clk 0:00:14.4]} 53. Rc4 {[%clk 0:01:28.7]} 53... Rh8 {[%clk 0:00:13.4]}
54. b4 {[%clk 0:01:28.6]} 54... Ke6 {[%clk 0:00:13.2]} 55. Kb3 {[%clk
0:01:27.7]} 55... Kd5 {[%clk 0:00:13.8]} 56. Rc5+ {[%clk 0:01:27.6]} 56... Kd4
{[%clk 0:00:11.7]} 57. f5 {[%clk 0:01:27.9]} 57... Rh3+ {[%clk 0:00:11.1]} 58.
Ka4 {[%clk 0:01:28]} 58... Rh1 {[%clk 0:00:11.6]} 59. Kb5 {[%clk 0:01:28.2]}
59... Rf1 {[%clk 0:00:11]} 60. Kb6 {[%clk 0:01:28]} 60... Rb1 {[%clk 0:00:10.4]}
61. b5 {[%clk 0:01:28.3]} 61... Rh1 {[%clk 0:00:11.1]} 62. Rc6 {[%clk
0:01:27.8]} 62... Rh5 {[%clk 0:00:10.9]} 63. f6 {[%clk 0:01:28.7]} 63... Rf5
{[%clk 0:00:09.5]} 64. Ka6 {[%clk 0:01:26.8]} 64... Kd5 {[%clk 0:00:10]} 65. Kb7
{[%clk 0:01:25.3]} 65... Ke5 {[%clk 0:00:08.5]} 66. b6 {[%clk 0:01:25.1]} 66...
Rxf6 {[%clk 0:00:09]} 67. Rxf6 {[%clk 0:01:25]} 1-0